bitfinex/quotes_BTCUSD_20240906
["timestamp","ask_amount","ask_price","bid_price","bid_amount"]
[1725626484991,0.882507,56721.0,56720.0,0.41864]
[1725626485222,0.882507,56721.0,56720.0,0.42064]
[1725626485451,1.23511,56721.0,56720.0,0.19194]
[1725626485690,1.23511,56721.0,56720.0,0.20408814]
[1725626486622,1.811224,56721.0,56720.0,0.01578814]
[1725626486828,0.882507,56721.0,56720.0,0.01578814]
[1725626487044,0.529904,56721.0,56720.0,0.00364]
[1725626487304,0.529904,56721.0,56720.0,0.01578814]
[1725626487775,0.001,56721.0,56720.0,0.01578814]
[1725626488089,0.001,56721.0,56720.0,0.37757516]
[1725626488310,0.529904,56721.0,56720.0,0.01578814]
[1725626488552,1.23511,56721.0,56720.0,0.01578814]
[1725626488760,1.23511,56721.0,56720.0,0.00364]
[1725626488988,1.587713,56721.0,56720.0,0.00364]
[1725626490309,1.687713,56721.0,56720.0,0.00364]
[1725626490854,1.687713,56721.0,56720.0,0.00164]
[1725626490855,2.40210302,56721.0,56720.0,0.00164]
[1725626491080,1.234131,56720.0,56719.0,0.00164]
[1725626491297,1.945576,56720.0,56719.0,0.00164]
[1725626491502,2.82635426,56720.0,56719.0,1e-06]
[1725626491702,2.650794,56720.0,56719.0,1e-06]
[1725626491929,2.6960817,56720.0,56719.0,1e-06]
[1725626492155,2.6960817,56720.0,56711.0,1e-06]
[1725626492156,1.939624,56712.0,56711.0,1e-06]
[1725626492359,4.92876802,56712.0,56711.0,1e-06]
[1725626492561,1.234457,56705.0,56704.0,0.00164]
[1725626492765,2.88601272,56705.0,56704.0,0.00164]
[1725626492986,3.59141672,56705.0,56704.0,1e-06]
[1725626493245,0.01,56700.0,56696.0,0.0113089]
[1725626493384,1.59641902,56697.0,56696.0,0.0113089]
[1725626493610,1.69641902,56697.0,56696.0,0.0113089]
[1725626493827,0.629128,56697.0,56696.0,0.45860416]
[1725626494002,0.629128,56697.0,56696.0,0.4463089]
[1725626494226,0.98188,56697.0,56696.0,0.45860416]
[1725626494424,0.88188,56697.0,56696.0,0.45860416]
[1725626494636,0.176376,56697.0,56696.0,0.4463089]
[1725626495090,0.176376,56697.0,56696.0,0.45860416]
[1725626495091,0.529128,56697.0,56696.0,0.45860416]
[1725626495301,0.002,56697.0,56696.0,0.50446458]
[1725626495499,0.178376,56697.0,56696.0,0.50446458]
[1725626495781,0.529128,56697.0,56696.0,0.50446458]
[1725626495992,0.88188,56697.0,56696.0,0.4463089]
[1725626496166,1.234632,56697.0,56696.0,0.4473089]
[1725626496621,0.529128,56697.0,56696.0,0.45960416]
[1725626497396,0.88188,56697.0,56696.0,0.4463089]
[1725626497596,0.529128,56697.0,56696.0,0.45860416]
[1725626497814,0.530128,56697.0,56696.0,0.46060416]
[1725626498221,0.88288,56697.0,56696.0,0.46060416]
[1725626498839,0.88288,56697.0,56696.0,0.4483089]
[1725626498840,1.235632,56697.0,56696.0,0.4483089]
[1725626499045,0.88288,56697.0,56696.0,0.0133089]
[1725626499255,1.235632,56697.0,56696.0,0.0133089]
[1725626499540,0.530128,56697.0,56696.0,0.0133089]
[1725626499975,0.88288,56697.0,56696.0,0.0133089]
[1725626500705,0.88188,56697.0,56696.0,0.0113089]
[1725626501160,1.234632,56697.0,56696.0,0.0133089]
[1725626501379,0.88188,56697.0,56696.0,0.0133089]
[1725626502023,1.234632,56697.0,56696.0,0.0133089]
[1725626502232,0.88188,56697.0,56696.0,0.0133089]
[1725626502448,1.234632,56697.0,56696.0,0.0133089]
[1725626502663,0.88188,56697.0,56696.0,0.0133089]
[1725626502890,1.234632,56697.0,56696.0,0.0133089]
[1725626503467,0.88188,56697.0,56696.0,0.0133089]
[1725626504144,0.352622,56718.0,56696.0,0.0133089]
[1725626504145,0.2358,56717.0,56697.0,0.1852]
[1725626504371,0.2358,56717.0,56698.0,0.04852782]
[1725626504584,0.176369,56699.0,56698.0,0.06081082]
[1725626504801,0.881847,56699.0,56698.0,0.012283]
[1725626505305,0.529108,56699.0,56698.0,0.01202]
[1725626505514,0.881865,56698.0,56697.0,0.1852]
[1725626505932,0.529119,56698.0,56697.0,0.1852]
[1725626506359,0.17637,56699.0,56697.0,0.1852]
[1725626506578,0.352663,56712.0,56697.0,0.1852]
[1725626506579,0.176364,56701.0,56698.0,0.04496429]
[1725626506822,0.176362,56702.0,56698.0,0.22133629]
[1725626507046,0.352719,56703.0,56698.0,0.04496429]
[1725626507265,0.352729,56701.0,56697.0,0.18872705]
[1725626507537,0.529119,56698.0,56697.0,0.1852]
[1725626508634,0.529119,56698.0,56697.0,0.1892]
[1725626509805,0.352706,56705.0,56697.0,0.1892]
[1725626510030,0.176372,56699.0,56697.0,0.24820289]
[1725626510230,0.352706,56705.0,56697.0,0.24820289]
[1725626510231,0.352734,56700.0,56697.0,0.24820289]
[1725626510445,0.001,56698.0,56697.0,0.1902]
[1725626510691,0.177373,56698.0,56697.0,0.1902]
[1725626510908,0.176371,56699.0,56697.0,0.1852]
[1725626511424,0.176367,56700.0,56697.0,0.1852]
[1725626511663,0.35273,56701.0,56697.0,0.28307869]
[1725626511664,0.17637,56699.0,56697.0,0.28307869]
[1725626511917,0.352664,56712.0,56696.0,0.4408209]
[1725626511918,0.352752,56697.0,56696.0,0.0129429]
[1725626512171,0.88188,56697.0,56696.0,0.0129429]
[1725626512400,1.234632,56697.0,56696.0,0.0129429]
[1725626512658,0.88188,56697.0,56696.0,0.0129429]
[1725626513140,1.234632,56697.0,56696.0,0.0129429]
[1725626514342,1.587384,56697.0,56696.0,0.01195117]
[1725626514574,1.687384,56697.0,56696.0,0.01195117]
[1725626514852,1.688384,56697.0,56696.0,0.01695117]
[1725626515121,2.041136,56697.0,56696.0,0.01695117]
[1725626515358,1.73911823,56697.0,56696.0,0.01195117]
[1725626515594,1.687384,56697.0,56696.0,0.01195117]
[1725626515826,2.09186926,56697.0,56696.0,0.01195117]
[1725626516061,1.73911726,56697.0,56696.0,0.01195117]
[1725626516300,1.687384,56697.0,56696.0,0.01195117]
[1725626516577,2.05764641,56697.0,56696.0,0.01195117]
[1725626516811,2.58595867,56697.0,56696.0,0.01495117]
[1725626517046,3.36674809,56697.0,56696.0,1.7e-07]
[1725626517283,2.87270783,56697.0,56696.0,1e-06]
[1725626517522,2.90035754,56697.0,56696.0,1e-06]
[1725626517757,2.88370783,56697.0,56696.0,1e-06]
[1725626517975,4.42866283,56697.0,56696.0,1e-06]
[1725626518232,2.63522913,56697.0,56696.0,1e-06]
[1725626518460,2.34339313,56697.0,56696.0,1e-06]
[1725626518997,2.33381841,56697.0,56696.0,1e-06]
[1725626519501,2.84333793,56697.0,56696.0,1e-06]
[1725626519737,3.15010239,56697.0,56696.0,1e-06]
[1725626519961,3.17775578,56697.0,56696.0,1e-06]
[1725626520174,3.1992278,56697.0,56696.0,1e-06]
[1725626520442,1.587861,56680.0,56679.0,0.52650515]
[1725626520705,2.3528954,56680.0,56679.0,0.52650515]
[1725626520947,2.7057534,56680.0,56679.0,0.01237763]
[1725626521178,1.587915,56678.0,56677.0,0.00023695]
[1725626521394,2.040785,56678.0,56677.0,0.00023695]
[1725626521632,2.2218869,56678.0,56677.0,0.00023695]
[1725626521859,1.73974084,56678.0,56677.0,0.00023695]
[1725626522086,1.335045,56678.0,56677.0,0.00023695]
[1725626522291,0.982175,56678.0,56677.0,0.00023695]
[1725626522552,1.335045,56678.0,56677.0,0.00023695]
[1725626522756,0.529305,56678.0,56677.0,0.19383695]
[1725626523022,0.352815,56687.0,56677.0,0.21339765]
[1725626523264,0.529305,56678.0,56677.0,0.22578755]
[1725626523504,0.529305,56678.0,56677.0,0.20622685]
[1725626523726,0.882175,56678.0,56677.0,0.20622685]
[1725626523977,0.529305,56678.0,56677.0,0.20622685]
[1725626524228,0.882175,56678.0,56677.0,0.19383695]
[1725626524483,0.882175,56678.0,56677.0,0.20622685]
[1725626524698,0.882175,56678.0,56677.0,0.21463663]
[1725626524929,0.882175,56678.0,56677.0,0.19383695]
[1725626525141,0.882175,56678.0,56677.0,0.20622685]
[1725626525356,1.235045,56678.0,56677.0,0.20622685]
[1725626525593,1.59737172,56678.0,56677.0,0.01262685]
[1725626525838,1.69737172,56678.0,56677.0,0.00023695]
[1725626526349,1.335045,56678.0,56677.0,0.00023695]
[1725626526577,1.69737172,56678.0,56677.0,0.00023695]
[1725626527262,1.87293198,56678.0,56677.0,0.00023695]
[1725626527498,2.27714172,56678.0,56677.0,0.00023695]
[1725626527735,2.32915534,56678.0,56677.0,0.00023695]
[1725626528168,2.32915534,56678.0,56675.0,9.5e-07]
[1725626528169,0.529324,56676.0,56675.0,9.5e-07]
[1725626528172,0.882207,56676.0,56675.0,9.5e-07]
[1725626528403,1.827825,56667.0,56666.0,1.5]
[1725626528628,1.827825,56667.0,56666.0,1.394115]
[1725626528629,4.57004595,56667.0,56666.0,1.394115]
[1725626528885,4.68817225,56667.0,56666.0,1.28823]
[1725626529127,4.68817225,56667.0,56666.0,1.252935]
[1725626529128,3.65730447,56667.0,56666.0,1.252935]
[1725626529353,3.90529172,56667.0,56666.0,1.21764]
[1725626529570,4.13350946,56667.0,56666.0,1.21764]
[1725626529811,4.08085198,56667.0,56666.0,1.21764]
[1725626530058,4.2584052,56667.0,56666.0,1.21764]
[1725626530546,4.08484494,56667.0,56666.0,1.21764]
[1725626530798,4.22354134,56667.0,56666.0,0.41858469]
[1725626531035,4.22354134,56667.0,56640.0,0.00164]
[1725626531036,0.529641,56642.0,56640.0,0.00164]
[1725626531276,1.87570894,56642.0,56640.0,0.00164]
[1725626531512,0.882752,56641.0,56640.0,0.00164]
[1725626531757,1.335853,56641.0,56640.0,0.00164]
[1725626531994,1.43264694,56640.0,56639.0,9e-07]
[1725626532250,1.588981,56640.0,56639.0,9e-07]
[1725626532482,1.688981,56640.0,56639.0,9e-07]
[1725626533686,1.711981,56640.0,56639.0,9e-07]
[1725626533925,1.688981,56640.0,56639.0,9e-07]
[1725626534178,0.62966,56640.0,56639.0,9e-07]
[1725626534434,0.1,56640.0,56639.0,0.04450099]
[1725626534669,0.1,56640.0,56639.0,9e-07]
[1725626534918,0.01102804,56653.0,56639.0,0.412055]
[1725626535173,0.53987994,56658.0,56646.0,0.176534]
[1725626535410,0.244,56665.0,56639.0,0.2355]
[1725626535411,0.353008,56656.0,56639.0,0.2355]
[1725626535658,0.244,56665.0,56639.0,0.2355]
[1725626535659,0.53987994,56658.0,56639.0,0.2355]
[1725626536121,0.52966,56640.0,56639.0,0.2355]
[1725626536352,0.176553,56640.0,56639.0,0.2355]
[1725626536611,0.52966,56640.0,56639.0,0.23543634]
[1725626536840,0.52966,56640.0,56639.0,0.24733006]
[1725626536841,0.882767,56640.0,56639.0,0.24733006]
[1725626537558,0.982767,56640.0,56639.0,0.01189372]
[1725626538045,0.982767,56640.0,56632.0,0.1903]
[1725626538046,0.176575,56633.0,56632.0,0.1903]
[1725626538285,0.529725,56633.0,56632.0,0.1903]
[1725626538516,0.529725,56633.0,56632.0,0.20223674]
[1725626538745,0.882875,56633.0,56632.0,0.1903]
[1725626538979,0.2364,56639.0,56621.0,0.1861]
[1725626539216,0.629725,56633.0,56632.0,0.01193674]
[1725626539449,0.883047,56622.0,56621.0,0.1861]
[1725626539712,0.529837,56621.0,56620.0,0.00164]
[1725626539955,1.336287,56621.0,56620.0,0.00164]
[1725626540197,0.983062,56621.0,56620.0,0.01365051]
[1725626540423,0.983062,56621.0,56620.0,0.00164]
[1725626540654,0.629837,56621.0,56620.0,0.00164]
[1725626540892,0.983062,56621.0,56620.0,0.00164]
[1725626541358,0.629837,56621.0,56620.0,0.00164]
[1725626541591,0.983062,56621.0,56620.0,0.00164]
[1725626542773,0.629837,56621.0,56620.0,0.00164]
[1725626543002,0.983062,56621.0,56620.0,0.00164]
[1725626543980,1.336287,56621.0,56620.0,0.00164]
[1725626544675,0.983062,56621.0,56620.0,0.00164]
[1725626545076,1.336287,56621.0,56620.0,0.00164]
[1725626545725,1.689512,56621.0,56620.0,0.00164]
[1725626545983,1.336287,56621.0,56620.0,0.00164]
[1725626546278,2.10077226,56621.0,56620.0,0.00164]
[1725626546501,2.66269726,56621.0,56620.0,1e-06]
[1725626546993,3.4127703,56621.0,56620.0,1e-06]
[1725626547197,3.49463122,56621.0,56620.0,1e-06]
[1725626547685,3.32907096,56621.0,56620.0,1e-06]
[1725626547943,2.96141896,56621.0,56620.0,1e-06]
[1725626548187,2.01824596,56621.0,56620.0,1e-06]
[1725626548430,2.7787665,56621.0,56620.0,1e-06]
[1725626548667,2.2828965,56621.0,56620.0,1e-06]
[1725626548909,2.81168176,56621.0,56620.0,1e-06]
[1725626549160,1.7710545,56621.0,56620.0,1e-06]
[1725626549881,2.4216765,56621.0,56620.0,1e-06]
[1725626550121,2.3967025,56621.0,56620.0,1e-06]
[1725626550379,2.0751935,56621.0,56620.0,1e-06]
[1725626550630,1.9314595,56621.0,56620.0,1e-06]
[1725626551590,1.9084595,56621.0,56620.0,1e-06]
[1725626551823,2.0022905,56621.0,56620.0,1e-06]
[1725626552090,2.36562079,56621.0,56620.0,1e-06]
[1725626552779,2.96004579,56621.0,56620.0,1e-06]
[1725626553265,3.35537608,56621.0,56620.0,1e-06]
[1725626553490,3.52083105,56621.0,56620.0,1e-06]
[1725626553954,1.943117,56610.0,56609.0,0.00164]
[1725626554199,2.42944729,56610.0,56609.0,0.00164]
[1725626554462,2.66864729,56610.0,56609.0,0.00164]
[1725626554699,2.92343004,56610.0,56609.0,0.00164]
[1725626555175,2.13237578,56610.0,56609.0,0.00164]
[1725626555406,0.70916349,56610.0,56609.0,0.00164]
[1725626555634,0.60916349,56610.0,56609.0,0.42664]
[1725626556119,0.60916349,56610.0,56609.0,0.44394629]
[1725626556120,0.96245749,56610.0,56609.0,0.44394629]
[1725626556337,0.60916349,56610.0,56609.0,0.42664]
[1725626556581,0.07922249,56610.0,56609.0,0.48661029]
[1725626557060,0.25586949,56610.0,56609.0,0.48084152]
[1725626557345,0.07922249,56610.0,56609.0,0.43817752]
[1725626557784,0.25586949,56610.0,56609.0,0.43817752]
[1725626558002,0.176647,56610.0,56609.0,0.43817752]
[1725626558454,0.176647,56610.0,56609.0,0.42664]
[1725626558917,0.176643,56612.0,56609.0,0.43817752]
[1725626559139,0.176647,56610.0,56609.0,0.43817752]
[1725626559360,1.336529,56610.0,56609.0,0.43817752]
[1725626559649,0.629941,56610.0,56609.0,0.42664]
[1725626559873,0.1,56610.0,56609.0,0.42277424]
[1725626560116,0.276647,56610.0,56609.0,0.43431176]
[1725626560342,0.353288,56611.0,56609.0,0.43431176]
[1725626560568,0.883235,56610.0,56609.0,0.43431176]
[1725626560760,0.883235,56610.0,56609.0,0.42277424]
[1725626561069,0.529941,56610.0,56609.0,0.46505166]
[1725626561287,0.883235,56610.0,56609.0,0.40931176]
[1725626561794,0.529941,56610.0,56609.0,0.40931176]
[1725626562034,0.529941,56610.0,56609.0,0.38431176]
[1725626562291,0.883235,56610.0,56609.0,0.37277424]
[1725626562531,0.529941,56610.0,56609.0,0.38431176]
[1725626562760,0.529941,56610.0,56609.0,0.35931176]
[1725626563019,0.176636,56614.0,56609.0,0.39774294]
[1725626563249,0.1,56616.0,56609.0,0.35931176]
[1725626563501,0.176626,56617.0,56610.0,0.176646]
[1725626563734,0.07899318,56630.0,56610.0,0.00353249]
[1725626563960,0.07899318,56630.0,56618.0,0.353241]
[1725626564187,0.07899318,56630.0,56616.0,0.353255]
[1725626564188,0.353195,56626.0,56619.0,0.5120376]
[1725626564417,0.353189,56627.0,56619.0,0.34689562]
[1725626564640,0.07899318,56630.0,56619.0,0.34689562]
[1725626565067,0.353213,56624.0,56619.0,0.34689562]
[1725626565068,0.07899318,56630.0,56620.0,0.2398]
[1725626565278,0.176595,56627.0,56620.0,0.24333176]
[1725626565524,0.07899318,56630.0,56621.0,0.01499554]
[1725626565762,0.07899318,56630.0,56623.0,0.45405254]
[1725626566000,0.000818,56639.0,56629.0,0.427]
[1725626566246,0.000818,56639.0,56631.0,0.40968]
[1725626566479,0.000818,56639.0,56632.0,0.003531]
[1725626566746,0.000818,56639.0,56638.0,0.529678]
[1725626566997,0.000818,56639.0,56638.0,0.771378]
[1725626567240,0.000818,56639.0,56638.0,0.25305922]
[1725626567470,0.000818,56639.0,56638.0,0.31522194]
[1725626567941,0.177374,56639.0,56638.0,0.31522194]
[1725626568162,1.8e-05,56639.0,56638.0,0.31522194]
[1725626568406,1.8e-05,56639.0,56638.0,0.84489994]
[1725626569174,1.8e-05,56639.0,56638.0,0.31522194]
[1725626569410,1.8e-05,56639.0,56638.0,0.25305922]
[1725626569411,0.8828,56639.0,56638.0,0.25305922]
[1725626569627,1.235913,56639.0,56638.0,0.01135922]
[1725626569849,1.8e-05,56639.0,56638.0,0.03169514]
[1725626570075,1.8e-05,56639.0,56638.0,0.02033592]
[1725626570324,1.8e-05,56639.0,56638.0,0.01135922]
[1725626570325,0.176574,56639.0,56638.0,0.01135922]
[1725626570786,1.8e-05,56639.0,56638.0,0.01135922]
[1725626571488,0.176574,56639.0,56638.0,0.01135922]
[1725626571959,0.8828,56639.0,56638.0,0.01135922]
[1725626572211,0.176574,56639.0,56638.0,0.01135922]
[1725626572973,1.8e-05,56639.0,56638.0,0.05698514]
[1725626573910,0.176574,56639.0,56638.0,0.01135922]
[1725626574130,0.529687,56639.0,56638.0,0.01135922]
[1725626574582,0.176559,56638.0,56637.0,0.192]
[1725626574810,0.529678,56638.0,56637.0,0.1915]
[1725626575065,1.235916,56638.0,56637.0,0.1915]
[1725626575289,0.882797,56638.0,56637.0,0.1915]
[1725626575550,0.353175,56629.0,56628.0,0.2388]
[1725626575774,1.8e-05,56639.0,56628.0,0.26268]
[1725626575993,0.176586,56630.0,56628.0,0.26268]
[1725626576484,0.353155,56633.0,56628.0,0.26268]
[1725626576717,1.8e-05,56639.0,56628.0,0.26268]
[1725626576937,0.176575,56634.0,56629.0,0.176586]
[1725626577206,0.176575,56634.0,56628.0,0.61939126]
[1725626577207,1.8e-05,56639.0,56631.0,0.2495]
[1725626577905,0.176578,56632.0,56631.0,0.43413105]
[1725626578144,0.176578,56632.0,56631.0,0.4306]
[1725626578369,0.000818,56634.0,56631.0,0.4306]
[1725626578645,0.000818,56634.0,56633.0,0.882875]
[1725626579147,0.000818,56634.0,56633.0,0.529725]
[1725626579355,0.000818,56634.0,56631.0,0.4306]
[1725626579580,0.529735,56632.0,56631.0,0.4306]
[1725626579804,0.000818,56634.0,56631.0,0.476048]
[1725626580556,0.000818,56634.0,56632.0,0.00353099]
[1725626580810,0.000818,56634.0,56633.0,0.176575]
[1725626581032,0.000818,56634.0,56631.0,0.476048]
[1725626581252,0.000818,56634.0,56632.0,0.26776852]
[1725626581561,0.07902955,56657.0,56634.0,0.197]
[1725626581798,0.07902955,56657.0,56656.0,0.72651]
[1725626582051,0.01,56681.0,56656.0,0.72651]
[1725626582052,0.02767203,56658.0,56657.0,0.1765]
[1725626582321,0.01848042,56670.0,56660.0,0.352979]
[1725626582544,0.01848042,56670.0,56669.0,0.45405254]
[1725626582827,0.01848042,56670.0,56657.0,0.09119152]
[1725626582828,0.176492,56660.0,56659.0,0.45405254]
[1725626583073,0.176492,56660.0,56637.0,0.002]
[1725626583074,0.176547,56642.0,56641.0,0.1903]
[1725626583325,0.176541,56644.0,56641.0,0.1903]
[1725626583573,0.02254845,56648.0,56634.0,0.1879]
[1725626583846,0.00603988,56645.0,56635.0,0.09553052]
[1725626584071,0.02254845,56648.0,56635.0,0.01153143]
[1725626584343,0.529698,56636.0,56635.0,0.01153143]
[1725626584540,1.485462,56636.0,56635.0,0.01153143]
[1725626584774,0.176586,56630.0,56620.0,0.192736]
[1725626585043,0.176576,56633.0,56622.0,0.176607]
[1725626585295,0.1,56632.0,56625.0,0.45405254]
[1725626585803,0.1,56632.0,56626.0,0.01158675]
[1725626586030,0.276581,56632.0,56626.0,0.01158675]
[1725626586277,0.276581,56632.0,56627.0,0.01158061]
[1725626586278,0.353165,56631.0,56627.0,0.01158061]
[1725626586511,0.176595,56627.0,56620.0,0.192736]
[1725626586737,0.353176,56629.0,56620.0,0.192736]
[1725626586738,0.176589,56629.0,56620.0,0.192736]
[1725626586987,0.176592,56628.0,56621.0,0.01161749]
[1725626587249,0.1,56630.0,56622.0,0.00353179]
[1725626587473,0.1,56630.0,56621.0,0.01161749]
[1725626587702,0.353146,56634.0,56623.0,0.0116052]
[1725626587703,0.176579,56632.0,56623.0,0.0116052]
[1725626587922,0.1,56631.0,56623.0,0.353212]
[1725626588460,0.176548,56642.0,56630.0,0.67514768]
[1725626588464,0.353103,56641.0,56630.0,0.85173068]
[1725626588690,0.353103,56641.0,56625.0,0.2506]
[1725626588691,0.1,56636.0,56625.0,0.92574768]
[1725626588926,0.1,56636.0,56632.0,0.176577]
[1725626589178,0.1,56636.0,56630.0,0.1905]
[1725626589424,0.176571,56635.0,56633.0,0.01154372]
[1725626589666,0.1,56636.0,56631.0,0.01155602]
[1725626589909,0.1,56636.0,56634.0,0.01153758]
[1725626590168,0.176562,56638.0,56630.0,0.1905]
[1725626590429,0.176566,56636.0,56635.0,0.01153143]
[1725626590670,0.176566,56636.0,56624.0,0.199]
[1725626590671,0.1,56636.0,56631.0,0.01155602]
[1725626590904,0.176575,56634.0,56630.0,0.001636]
[1725626591177,0.1,56639.0,56630.0,0.001636]
[1725626591446,0.000818,56642.0,56630.0,0.001636]
[1725626591447,0.000818,56642.0,56631.0,0.25058723]
[1725626591684,0.000818,56642.0,56638.0,0.176557]
[1725626591934,0.000818,56642.0,56638.0,0.176558]
[1725626592172,0.000818,56642.0,56639.0,0.01150685]
[1725626592418,0.177366,56642.0,56639.0,0.01150685]
[1725626592671,0.353107,56640.0,56632.0,0.09273709]
[1725626592890,0.0991706,56642.0,56630.0,0.001636]
[1725626593114,0.000818,56642.0,56630.0,0.001636]
[1725626593408,0.176564,56637.0,56632.0,0.176577]
[1725626593645,0.35312,56638.0,56632.0,0.2650327]
[1725626593889,0.353113,56639.0,56633.0,0.176575]
[1725626594132,0.176563,56637.0,56633.0,0.176575]
[1725626595118,0.000818,56642.0,56640.0,0.176552]
[1725626595342,0.000818,56642.0,56637.0,0.353121]
[1725626595566,0.000818,56642.0,56638.0,0.353116]
[1725626595853,0.000818,56642.0,56638.0,0.0884557]
[1725626596083,0.177366,56642.0,56636.0,0.353129]
[1725626596337,0.177366,56642.0,56635.0,0.4389]
[1725626596338,0.176554,56640.0,56637.0,0.176562]
[1725626596580,0.177368,56642.0,56638.0,0.176558]
[1725626596828,0.000818,56642.0,56641.0,0.17655]
[1725626597316,0.000818,56642.0,56637.0,0.67514768]
[1725626597539,0.000818,56642.0,56639.0,0.353112]
[1725626597769,0.000818,56642.0,56637.0,0.353121]
[1725626598018,0.000818,56642.0,56635.0,0.615466]
[1725626598019,0.176558,56639.0,56635.0,0.615466]
[1725626598278,0.529689,56637.0,56636.0,0.00021255]
[1725626598738,0.176563,56637.0,56636.0,0.00021255]
[1725626598988,0.529689,56637.0,56636.0,0.00021255]
[1725626599209,0.176563,56637.0,56636.0,0.00021255]
[1725626600481,0.000818,56642.0,56637.0,0.176562]
[1725626600699,0.176554,56640.0,56637.0,0.176562]
[1725626600938,0.176557,56639.0,56636.0,0.22977261]
[1725626601165,0.177366,56642.0,56637.0,0.353125]
[1725626601393,0.177366,56642.0,56637.0,0.176562]
[1725626601394,0.000818,56642.0,56637.0,0.176562]
[1725626601616,0.176553,56640.0,56637.0,0.176562]
[1725626601841,0.176556,56639.0,56637.0,0.08364546]
[1725626602054,0.176553,56640.0,56637.0,0.176562]
[1725626602483,0.353102,56641.0,56637.0,0.176562]
[1725626602484,0.176552,56641.0,56637.0,0.176561]
[1725626602702,0.176551,56641.0,56638.0,0.176559]
[1725626602973,0.000818,56642.0,56636.0,0.35334155]
[1725626602974,0.000818,56642.0,56641.0,0.529651]
[1725626603220,0.000818,56642.0,56641.0,0.882752]
[1725626603429,0.000818,56642.0,56641.0,2.11000068]
[1725626603748,0.000818,56642.0,56641.0,2.49805464]
[1725626603977,0.000818,56642.0,56641.0,2.5797041]
[1725626604210,0.000818,56642.0,56641.0,2.75521506]
[1725626604433,0.000818,56642.0,56641.0,2.8212041]
[1725626604668,0.000818,56642.0,56641.0,2.4581031]
[1725626604924,0.000818,56642.0,56641.0,2.1050021]
[1725626605153,0.000818,56642.0,56641.0,0.70069946]
[1725626605623,0.000818,56642.0,56641.0,0.53564402]
[1725626606127,0.000818,56642.0,56641.0,1.7404427]
[1725626606367,0.000818,56642.0,56641.0,2.11609365]
[1725626606828,0.000818,56642.0,56641.0,3.02780661]
[1725626607061,0.000818,56642.0,56641.0,3.05280661]
[1725626607302,0.17647,56667.0,56650.0,0.2515]
[1725626607558,0.71760515,56676.0,56663.0,0.1888]
[1725626607559,0.2437,56675.0,56663.0,0.1888]
[1725626607787,0.176463,56669.0,56664.0,0.2515]
[1725626608046,0.01847949,56676.0,56664.0,0.26285329]
[1725626608047,0.352915,56671.0,56664.0,0.26285329]
[1725626608293,0.352915,56671.0,56665.0,0.176475]
[1725626608294,0.176461,56670.0,56665.0,0.176475]
[1725626608542,0.352915,56671.0,56664.0,0.26285329]
[1725626608781,0.2535,56681.0,56667.0,0.176468]
[1725626608782,0.352868,56679.0,56667.0,0.176468]
[1725626608999,0.2535,56681.0,56668.0,0.00352896]
[1725626609227,0.35291,56672.0,56668.0,0.01132874]
[1725626609469,0.2535,56681.0,56665.0,0.08364946]
[1725626609737,0.17646,56670.0,56669.0,0.0113226]
[1725626609987,0.1997,56680.0,56669.0,0.00949721]
[1725626610234,0.176466,56668.0,56663.0,0.00352908]
[1725626610470,0.352875,56678.0,56665.0,0.352951]
[1725626610701,0.352885,56676.0,56669.0,0.176461]
[1725626610926,0.1,56679.0,56667.0,0.00352883]
[1725626610927,0.352914,56671.0,56667.0,0.00352883]
[1725626611163,0.176452,56673.0,56670.0,0.01131646]
[1725626611464,0.70362575,56691.0,56672.0,0.17551096]
[1725626611690,0.00082,56691.0,56675.0,0.01]
[1725626611917,0.00082,56691.0,56674.0,0.352895]
[1725626611918,0.352822,56686.0,56674.0,0.352895]
[1725626612163,0.00082,56691.0,56682.0,0.01]
[1725626612401,0.00082,56691.0,56683.0,0.00352741]
[1725626612637,0.00082,56691.0,56686.0,0.17641]
[1725626612890,0.00082,56691.0,56686.0,0.6786752]
[1725626613145,0.352801,56690.0,56686.0,0.68989348]
[1725626613381,0.00082,56691.0,56686.0,0.68636596]
[1725626613877,0.176402,56689.0,56686.0,0.68636596]
[1725626614106,0.353634,56687.0,56686.0,0.01121828]
[1725626614335,0.176413,56685.0,56684.0,0.03663774]
[1725626614574,0.52924,56685.0,56684.0,0.03663774]
[1725626614804,0.176413,56685.0,56684.0,0.03663774]
[1725626615028,0.52924,56685.0,56684.0,0.03663774]
[1725626615519,0.882067,56685.0,56684.0,0.03663774]
[1725626615747,0.529287,56680.0,56679.0,0.415]
[1725626616442,0.176457,56671.0,56670.0,0.67514768]
[1725626616686,0.176457,56671.0,56669.0,0.197]
[1725626616687,0.17646,56670.0,56669.0,0.197]
[1725626616921,0.52938,56670.0,56669.0,0.197]
[1725626617161,0.2489,56681.0,56669.0,0.197]
[1725626617162,0.176454,56672.0,56669.0,0.197]
[1725626617618,0.352902,56673.0,56669.0,0.197]
[1725626617854,0.2489,56681.0,56669.0,0.197]
[1725626618119,0.176452,56673.0,56670.0,0.00352852]
[1725626618348,0.17646,56670.0,56669.0,0.87214768]
[1725626619528,0.176449,56674.0,56670.0,0.176459]
[1725626619779,0.176475,56665.0,56664.0,0.1809]
[1725626620007,0.2507,56683.0,56664.0,0.1809]
[1725626620008,0.176465,56669.0,56664.0,0.357377]
[1725626620269,0.603545,56683.0,56664.0,0.357377]
[1725626620270,0.176468,56668.0,56665.0,0.00352898]
[1725626620532,0.071527,56720.0,56698.0,0.01]
[1725626620793,0.071527,56720.0,56719.0,0.01]
[1725626620794,0.000817,56720.0,56719.0,0.01]
[1725626621042,0.000816,56741.0,56740.0,0.538727]
[1725626621288,1.29403,56741.0,56740.0,0.7181972]
[1725626621534,0.353079,56777.0,56740.0,0.7181972]
[1725626621535,0.070663,56766.0,56765.0,0.02]
[1725626621776,0.00082,56777.0,56769.0,0.0097391]
[1725626622004,0.00082,56777.0,56772.0,0.67137027]
[1725626622238,0.00082,56777.0,56775.0,0.176133]
[1725626622469,0.00082,56777.0,56775.0,0.22114252]
[1725626622702,0.00082,56777.0,56775.0,0.21331542]